[Event "Early-Titled-Tuesday-Blitz-October-10-2023"]
[Site "Chess.com"]
[Date "2023.10.10"]
[Round "11"]
[White "stepanosinovsky"]
[Black "ivana_999"]
[Result "1-0"]
[WhiteElo "2388"]
[BlackElo "2092"]
[TimeControl "180+1"]
[EndTime "10:05:04 PDT"]
[Termination "stepanosinovsky won by checkmate"]

1. Nf3 {[%clk 0:03:00.9]} 1... d5 {[%clk 0:02:59.8]} 2. g3 {[%clk 0:03:01.8]}
2... c5 {[%clk 0:02:59.7]} 3. Bg2 {[%clk 0:02:53.4]} 3... Nc6 {[%clk 0:02:59.6]}
4. O-O {[%clk 0:02:54.3]} 4... Nf6 {[%clk 0:02:59.5]} 5. d3 {[%clk 0:02:55]}
5... h6 {[%clk 0:02:58]} 6. Nbd2 {[%clk 0:02:55.9]} 6... Bf5 {[%clk 0:02:58]} 7.
b3 {[%clk 0:02:43.4]} 7... e6 {[%clk 0:02:57.2]} 8. Bb2 {[%clk 0:02:41.8]} 8...
Be7 {[%clk 0:02:57]} 9. e4 {[%clk 0:02:40.4]} 9... dxe4 {[%clk 0:02:50.5]} 10.
dxe4 {[%clk 0:02:40.4]} 10... Nxe4 {[%clk 0:02:37.6]} 11. Bxg7 {[%clk
0:02:33.6]} 11... Rh7 {[%clk 0:02:33.5]} 12. Bb2 {[%clk 0:02:28.9]} 12... Nxd2
{[%clk 0:02:27.6]} 13. Nxd2 {[%clk 0:02:26.2]} 13... Bf6 {[%clk 0:02:24.8]} 14.
Bxf6 {[%clk 0:02:20.1]} 14... Qxf6 {[%clk 0:02:25.7]} 15. Ne4 {[%clk 0:02:20.3]}
15... Qe7 {[%clk 0:02:20.3]} 16. Nd6+ {[%clk 0:02:18.9]} 16... Kf8 {[%clk
0:02:17.5]} 17. Nxb7 {[%clk 0:01:56.6]} 17... Qxb7 {[%clk 0:02:14.8]} 18. Qd6+
{[%clk 0:01:56.1]} 18... Qe7 {[%clk 0:02:06.4]} 19. Qxc6 {[%clk 0:01:47.9]}
19... Rd8 {[%clk 0:01:59.5]} 20. Rad1 {[%clk 0:01:43.9]} 20... Kg7 {[%clk
0:01:51.6]} 21. Rxd8 {[%clk 0:01:38.2]} 21... Qxd8 {[%clk 0:01:51.5]} 22. Qxc5
{[%clk 0:01:38.8]} 22... Rh8 {[%clk 0:01:49]} 23. c4 {[%clk 0:01:31.1]} 23...
Qd7 {[%clk 0:01:40.1]} 24. Bf3 {[%clk 0:01:22.9]} 24... Rd8 {[%clk 0:01:33.4]}
25. Rd1 {[%clk 0:01:21]} 25... Qe8 {[%clk 0:01:31.7]} 26. Qe5+ {[%clk
0:01:19.7]} 26... Kg8 {[%clk 0:01:29.7]} 27. Rxd8 {[%clk 0:01:15.4]} 27... Qxd8
{[%clk 0:01:30.6]} 28. Kg2 {[%clk 0:01:14.8]} 28... Qg5 {[%clk 0:01:19.9]} 29.
Qb8+ {[%clk 0:01:06.7]} 29... Kg7 {[%clk 0:01:17.9]} 30. Qxa7 {[%clk 0:01:06.8]}
30... Qd2 {[%clk 0:01:12.4]} 31. a4 {[%clk 0:00:52.6]} 31... Bc2 {[%clk
0:00:55.4]} 32. Qe3 {[%clk 0:00:32.2]} 32... Qxe3 {[%clk 0:00:43.9]} 33. fxe3
{[%clk 0:00:33.1]} 33... Bxb3 {[%clk 0:00:44.2]} 34. c5 {[%clk 0:00:33]} 34...
Bxa4 {[%clk 0:00:41.1]} 35. c6 {[%clk 0:00:33.9]} 35... Kf6 {[%clk 0:00:33.4]}
36. c7 {[%clk 0:00:34.1]} 36... Bd7 {[%clk 0:00:32.8]} 37. Bb7 {[%clk
0:00:34.5]} 37... Ke5 {[%clk 0:00:29.7]} 38. c8=Q {[%clk 0:00:31.9]} 38... Bxc8
{[%clk 0:00:30.1]} 39. Bxc8 {[%clk 0:00:32.8]} 39... Ke4 {[%clk 0:00:30.8]} 40.
Kf2 {[%clk 0:00:32.6]} 40... Kf5 {[%clk 0:00:30]} 41. Kf3 {[%clk 0:00:31.3]}
41... Kg5 {[%clk 0:00:30.5]} 42. Bd7 {[%clk 0:00:28.8]} 42... Kf6 {[%clk
0:00:31.4]} 43. Kf4 {[%clk 0:00:28.3]} 43... Kg6 {[%clk 0:00:31.4]} 44. Ke5
{[%clk 0:00:26.5]} 44... Kg5 {[%clk 0:00:31.9]} 45. Be8 {[%clk 0:00:22.9]} 45...
Kg4 {[%clk 0:00:27.7]} 46. Bxf7 {[%clk 0:00:20.5]} 46... Kh3 {[%clk 0:00:27.9]}
47. Bxe6+ {[%clk 0:00:19.4]} 47... Kxh2 {[%clk 0:00:28.8]} 48. Kf4 {[%clk
0:00:19.8]} 48... Kg2 {[%clk 0:00:27.2]} 49. Bf5 {[%clk 0:00:19.1]} 49... Kg1
{[%clk 0:00:28.1]} 50. e4 {[%clk 0:00:19.4]} 50... h5 {[%clk 0:00:29]} 51. e5
{[%clk 0:00:19.7]} 51... h4 {[%clk 0:00:29.9]} 52. gxh4 {[%clk 0:00:20]} 52...
Kh1 {[%clk 0:00:29.9]} 53. Kg3 {[%clk 0:00:19.6]} 53... Kg1 {[%clk 0:00:30.1]}
54. Bh3 {[%clk 0:00:19.9]} 54... Kh1 {[%clk 0:00:31]} 55. e6 {[%clk 0:00:20.3]}
55... Kg1 {[%clk 0:00:31.2]} 56. e7 {[%clk 0:00:21.2]} 56... Kh1 {[%clk
0:00:32.1]} 57. e8=Q {[%clk 0:00:21.6]} 57... Kg1 {[%clk 0:00:33]} 58. Qd8
{[%clk 0:00:21.6]} 58... Kh1 {[%clk 0:00:33.9]} 59. Qd1# {[%clk 0:00:20.7]} 1-0

[Event "Early-Titled-Tuesday-Blitz-October-10-2023"]
[Site "Chess.com"]
[Date "2023.10.10"]
[Round "11"]
[White "Krlence"]
[Black "Iskusnyh"]
[Result "0-1"]
[WhiteElo "2440"]
[BlackElo "2582"]
[TimeControl "180+1"]
[EndTime "10:05:09 PDT"]
[Termination "Iskusnyh won by resignation"]

1. e4 {[%clk 0:01:19.1]} 1... e6 {[%clk 0:02:57.8]} 2. d4 {[%clk 0:01:18]} 2...
d5 {[%clk 0:02:57.2]} 3. exd5 {[%clk 0:01:18.9]} 3... exd5 {[%clk 0:02:56.6]} 4.
Nf3 {[%clk 0:01:19.5]} 4... Nf6 {[%clk 0:02:53.9]} 5. Bd3 {[%clk 0:01:19.4]}
5... c5 {[%clk 0:02:47]} 6. dxc5 {[%clk 0:01:19.2]} 6... Bxc5 {[%clk 0:02:45.6]}
7. h3 {[%clk 0:01:19.7]} 7... O-O {[%clk 0:02:42]} 8. O-O {[%clk 0:01:20]} 8...
Nc6 {[%clk 0:02:39.4]} 9. Nbd2 {[%clk 0:01:20]} 9... Bb6 {[%clk 0:02:37.9]} 10.
Nb3 {[%clk 0:01:20.3]} 10... Ne4 {[%clk 0:02:37.4]} 11. Bf4 {[%clk 0:01:19.9]}
11... Qf6 {[%clk 0:02:34.9]} 12. Qc1 {[%clk 0:01:15.4]} 12... h6 {[%clk
0:02:27.1]} 13. c3 {[%clk 0:01:14.6]} 13... Bf5 {[%clk 0:02:08.1]} 14. Nbd4
{[%clk 0:00:20.4]} 14... Nxd4 {[%clk 0:01:45.6]} 15. cxd4 {[%clk 0:00:20.4]}
15... Ng3 {[%clk 0:01:19.7]} 16. Bxg3 {[%clk 0:00:11.3]} 16... Bxd3 {[%clk
0:01:18]} 17. Be5 {[%clk 0:00:09.8]} 17... Qg6 {[%clk 0:01:14.5]} 18. Re1 {[%clk
0:00:09.7]} 18... Be4 {[%clk 0:01:05.7]} 19. Qe3 {[%clk 0:00:10]} 19... f6
{[%clk 0:01:05.4]} 20. Bg3 {[%clk 0:00:07.5]} 20... Rfe8 {[%clk 0:01:04.9]} 21.
Qb3 {[%clk 0:00:07.6]} 21... Qf5 {[%clk 0:00:59]} 22. Rac1 {[%clk 0:00:04.3]}
22... Bxf3 {[%clk 0:00:57.9]} 23. gxf3 {[%clk 0:00:04.6]} 23... Kh7 {[%clk
0:00:46.8]} 24. Kg2 {[%clk 0:00:04.7]} 24... h5 {[%clk 0:00:39]} 25. h4 {[%clk
0:00:03.7]} 25... Kg6 {[%clk 0:00:24]} 26. Rxe8 {[%clk 0:00:03.5]} 26... Rxe8
{[%clk 0:00:22.9]} 27. Qc3 {[%clk 0:00:03.9]} 27... Re7 {[%clk 0:00:21.1]} 28.
Re1 {[%clk 0:00:04]} 28... Rxe1 {[%clk 0:00:20.1]} 29. Qxe1 {[%clk 0:00:04.9]}
29... Kf7 {[%clk 0:00:20.3]} 30. Qb4 {[%clk 0:00:03.6]} 30... Qd7 {[%clk
0:00:19.2]} 31. a4 {[%clk 0:00:02.9]} 31... Qc6 {[%clk 0:00:16.4]} 32. a5 {[%clk
0:00:03.1]} 32... Bd8 {[%clk 0:00:16.1]} 33. b3 {[%clk 0:00:03.6]} 33... Be7
{[%clk 0:00:15.8]} 34. Qd2 {[%clk 0:00:03.9]} 34... a6 {[%clk 0:00:15.4]} 35.
Qf4 {[%clk 0:00:04.2]} 35... Qe6 {[%clk 0:00:13.8]} 36. Qc7 {[%clk 0:00:04]}
36... Qc6 {[%clk 0:00:13.3]} 37. Qf4 {[%clk 0:00:04.3]} 37... Bf8 {[%clk
0:00:12.2]} 38. Qf5 {[%clk 0:00:04.5]} 38... g6 {[%clk 0:00:11.1]} 39. Qd3
{[%clk 0:00:04.9]} 39... Be7 {[%clk 0:00:10.9]} 40. f4 {[%clk 0:00:05.3]} 40...
Qe6 {[%clk 0:00:10.2]} 41. Qc3 {[%clk 0:00:04]} 41... Qd7 {[%clk 0:00:09.8]} 42.
Qd3 {[%clk 0:00:03.9]} 42... Bd8 {[%clk 0:00:09.6]} 43. Qc3 {[%clk 0:00:04]}
43... Qc6 {[%clk 0:00:09.8]} 44. f5 {[%clk 0:00:04.2]} 44... Qxc3 {[%clk
0:00:09.3]} 0-1

[Event "Early-Titled-Tuesday-Blitz-October-10-2023"]
[Site "Chess.com"]
[Date "2023.10.10"]
[Round "11"]
[White "Alonmindlin"]
[Black "JimDiGrease"]
[Result "1-0"]
[WhiteElo "2737"]
[BlackElo "2898"]
[TimeControl "180+1"]
[EndTime "10:05:10 PDT"]
[Termination "Alonmindlin won on time"]

1. d4 {[%clk 0:02:58.1]} 1... d5 {[%clk 0:02:59.8]} 2. c4 {[%clk 0:02:58]} 2...
e6 {[%clk 0:02:58.8]} 3. Nc3 {[%clk 0:02:57.9]} 3... c6 {[%clk 0:02:57.5]} 4. e3
{[%clk 0:02:52.7]} 4... Nf6 {[%clk 0:02:57.1]} 5. Nf3 {[%clk 0:02:53]} 5... Nbd7
{[%clk 0:02:56.2]} 6. Bd3 {[%clk 0:02:53.2]} 6... dxc4 {[%clk 0:02:55.7]} 7.
Bxc4 {[%clk 0:02:54.1]} 7... b5 {[%clk 0:02:55.3]} 8. Bd3 {[%clk 0:02:54.5]}
8... Bb7 {[%clk 0:02:56]} 9. O-O {[%clk 0:02:54.8]} 9... a6 {[%clk 0:02:55.9]}
10. Qe2 {[%clk 0:02:54.2]} 10... c5 {[%clk 0:02:55.3]} 11. b3 {[%clk 0:02:52.3]}
11... cxd4 {[%clk 0:02:53.2]} 12. exd4 {[%clk 0:02:49.9]} 12... Bd6 {[%clk
0:02:51.7]} 13. Bg5 {[%clk 0:02:45.6]} 13... O-O {[%clk 0:02:50]} 14. a4 {[%clk
0:02:42.8]} 14... b4 {[%clk 0:02:39.4]} 15. Ne4 {[%clk 0:02:42.9]} 15... Be7
{[%clk 0:02:37.6]} 16. Rac1 {[%clk 0:02:38.2]} 16... h6 {[%clk 0:02:09.2]} 17.
Bf4 {[%clk 0:02:30.5]} 17... Bd5 {[%clk 0:01:45.5]} 18. Nxf6+ {[%clk 0:02:22.9]}
18... Nxf6 {[%clk 0:01:41.6]} 19. Ne5 {[%clk 0:02:19.2]} 19... Bxb3 {[%clk
0:01:23.9]} 20. Nc6 {[%clk 0:02:18.3]} 20... Qd7 {[%clk 0:01:22.1]} 21. Nxe7+
{[%clk 0:02:19.2]} 21... Qxe7 {[%clk 0:01:22.4]} 22. Rc7 {[%clk 0:02:18.7]}
22... Qd8 {[%clk 0:01:18.3]} 23. Be5 {[%clk 0:02:17.6]} 23... Bd5 {[%clk
0:00:57.5]} 24. Rfc1 {[%clk 0:02:11.1]} 24... Ne8 {[%clk 0:00:52.4]} 25. R7c5
{[%clk 0:01:53.5]} 25... b3 {[%clk 0:00:44.9]} 26. Bb1 {[%clk 0:01:53.2]} 26...
Nf6 {[%clk 0:00:24.5]} 27. f3 {[%clk 0:01:51.6]} 27... Nd7 {[%clk 0:00:22.8]}
28. Qd3 {[%clk 0:01:48.6]} 28... g6 {[%clk 0:00:23.2]} 29. Rc7 {[%clk
0:01:47.2]} 29... Nxe5 {[%clk 0:00:22.8]} 30. dxe5 {[%clk 0:01:48.1]} 30... Qg5
{[%clk 0:00:22]} 31. Re1 {[%clk 0:01:38.3]} 31... Rac8 {[%clk 0:00:19.7]} 32.
Rc3 {[%clk 0:01:35.6]} 32... Rxc3 {[%clk 0:00:18.3]} 33. Qxc3 {[%clk 0:01:36.5]}
33... Qf4 {[%clk 0:00:18.1]} 34. Be4 {[%clk 0:01:34.5]} 34... Rb8 {[%clk
0:00:17.7]} 35. Bxd5 {[%clk 0:01:33.9]} 35... exd5 {[%clk 0:00:18]} 36. e6
{[%clk 0:01:34.8]} 36... fxe6 {[%clk 0:00:10.7]} 37. Rxe6 {[%clk 0:01:33.2]}
37... Qf7 {[%clk 0:00:11.3]} 38. Qe5 {[%clk 0:01:32.7]} 38... Rf8 {[%clk
0:00:06.1]} 39. Qxd5 {[%clk 0:01:26.4]} 39... b2 {[%clk 0:00:06.4]} 40. Rxg6+
{[%clk 0:01:26.5]} 40... Kh7 {[%clk 0:00:06]} 41. Qxf7+ {[%clk 0:01:27.2]} 41...
Rxf7 {[%clk 0:00:05.2]} 42. Rb6 {[%clk 0:01:28.1]} 42... Rf4 {[%clk 0:00:05.5]}
43. Rxb2 {[%clk 0:01:27.3]} 43... Rxa4 {[%clk 0:00:06]} 44. Rb6 {[%clk
0:01:26.1]} 44... a5 {[%clk 0:00:06]} 45. Ra6 {[%clk 0:01:25.4]} 45... Ra2
{[%clk 0:00:05.8]} 46. h3 {[%clk 0:01:25.6]} 46... a4 {[%clk 0:00:05.8]} 47. Kh2
{[%clk 0:01:26.1]} 47... a3 {[%clk 0:00:06.3]} 48. h4 {[%clk 0:01:26.6]} 48...
Ra1 {[%clk 0:00:06.8]} 49. Kg3 {[%clk 0:01:27.1]} 49... a2 {[%clk 0:00:07.4]}
50. Kf4 {[%clk 0:01:27.5]} 50... Rh1 {[%clk 0:00:03.4]} 51. Ra7+ {[%clk
0:01:27.2]} 51... Kg6 {[%clk 0:00:03.2]} 52. Ra6+ {[%clk 0:01:27.7]} 52... Kg7
{[%clk 0:00:03.3]} 53. Rxa2 {[%clk 0:01:28.6]} 53... Rxh4+ {[%clk 0:00:03.6]}
54. g4 {[%clk 0:01:27.9]} 54... Rh3 {[%clk 0:00:03.7]} 55. Ra3 {[%clk
0:01:27.6]} 55... Kg6 {[%clk 0:00:03.7]} 56. Ra6+ {[%clk 0:01:27.4]} 56... Kg7
{[%clk 0:00:04.2]} 57. Rb6 {[%clk 0:01:27.8]} 57... Kh7 {[%clk 0:00:04.3]} 58.
Rb3 {[%clk 0:01:26.2]} 58... Kg6 {[%clk 0:00:04.3]} 59. Rc3 {[%clk 0:01:26.2]}
59... Kf6 {[%clk 0:00:04.2]} 60. Rd3 {[%clk 0:01:25.2]} 60... Kg6 {[%clk
0:00:04.4]} 61. Ke4 {[%clk 0:01:25.7]} 61... Rh1 {[%clk 0:00:04.2]} 62. Rd6+
{[%clk 0:01:25.2]} 62... Kg7 {[%clk 0:00:03.8]} 63. Kf5 {[%clk 0:01:24.9]} 63...
Rc1 {[%clk 0:00:01.8]} 64. Rd7+ {[%clk 0:01:25.1]} 64... Kg8 {[%clk 0:00:02.2]}
65. f4 {[%clk 0:01:24.2]} 65... Rc5+ {[%clk 0:00:02.4]} 66. Kg6 {[%clk
0:01:24.5]} 66... Rc6+ {[%clk 0:00:02.2]} 67. Kh5 {[%clk 0:01:25]} 67... Rc4
{[%clk 0:00:02.8]} 68. f5 {[%clk 0:01:23.3]} 68... Rf4 {[%clk 0:00:03]} 69. Rc7
{[%clk 0:01:19.6]} 69... Kf8 {[%clk 0:00:01.9]} 70. Rh7 {[%clk 0:01:17.8]} 1-0

[Event "Early-Titled-Tuesday-Blitz-October-10-2023"]
[Site "Chess.com"]
[Date "2023.10.10"]
[Round "11"]
[White "Russian_berezka"]
[Black "Grossboss19"]
[Result "1-0"]
[WhiteElo "2661"]
[BlackElo "2525"]
[TimeControl "180+1"]
[EndTime "10:05:10 PDT"]
[Termination "Russian_berezka won on time"]

1. d4 {[%clk 0:03:00.6]} 1... d6 {[%clk 0:02:28.8]} 2. Nf3 {[%clk 0:02:59.1]}
2... Nf6 {[%clk 0:02:27.3]} 3. c4 {[%clk 0:02:58.5]} 3... g6 {[%clk 0:02:28.2]}
4. Nc3 {[%clk 0:02:58.1]} 4... Bg7 {[%clk 0:02:29.1]} 5. e4 {[%clk 0:02:58.8]}
5... O-O {[%clk 0:02:29.9]} 6. Be2 {[%clk 0:02:59.5]} 6... e5 {[%clk 0:02:29.3]}
7. O-O {[%clk 0:02:59.7]} 7... Nc6 {[%clk 0:02:29.3]} 8. d5 {[%clk 0:03:00.3]}
8... Ne7 {[%clk 0:02:29.9]} 9. Ne1 {[%clk 0:03:01]} 9... Ne8 {[%clk 0:02:30]}
10. Nd3 {[%clk 0:03:01.4]} 10... f5 {[%clk 0:02:30.7]} 11. f3 {[%clk 0:03:02]}
11... h5 {[%clk 0:02:26.1]} 12. b4 {[%clk 0:02:50.6]} 12... a5 {[%clk
0:02:22.4]} 13. bxa5 {[%clk 0:02:47]} 13... Rxa5 {[%clk 0:02:18.9]} 14. a4
{[%clk 0:02:45.9]} 14... b6 {[%clk 0:02:18.4]} 15. Nb5 {[%clk 0:02:40.6]} 15...
Nf6 {[%clk 0:02:10.7]} 16. Nf2 {[%clk 0:02:40.8]} 16... Ra8 {[%clk 0:02:01.3]}
17. Bd2 {[%clk 0:02:24.2]} 17... Rf7 {[%clk 0:01:56.9]} 18. a5 {[%clk
0:02:18.4]} 18... Nd7 {[%clk 0:01:46.5]} 19. axb6 {[%clk 0:02:01.4]} 19... Rxa1
{[%clk 0:01:47.4]} 20. bxc7 {[%clk 0:01:57.5]} 20... Qxc7 {[%clk 0:01:22.1]} 21.
Qxa1 {[%clk 0:01:34.8]} 21... Qb6 {[%clk 0:01:19.1]} 22. Qa7 {[%clk 0:01:27.3]}
22... Qxa7 {[%clk 0:01:13.1]} 23. Nxa7 {[%clk 0:01:28.2]} 23... Ba6 {[%clk
0:01:12.9]} 24. Ra1 {[%clk 0:01:19.2]} 24... Nc5 {[%clk 0:01:07.8]} 25. Bb4
{[%clk 0:01:18.8]} 25... Bb7 {[%clk 0:01:02]} 26. Nb5 {[%clk 0:01:15.7]} 26...
Nc8 {[%clk 0:00:51.6]} 27. Nxd6 {[%clk 0:01:13.6]} 27... Nxd6 {[%clk 0:00:50.2]}
28. Bxc5 {[%clk 0:01:13.7]} 28... Bf8 {[%clk 0:00:50.8]} 29. Be3 {[%clk
0:01:08.7]} 29... f4 {[%clk 0:00:42.8]} 30. Bc1 {[%clk 0:00:48.6]} 30... Rc7
{[%clk 0:00:40.5]} 31. Ra4 {[%clk 0:00:39.2]} 31... Nb5 {[%clk 0:00:21.3]} 32.
Bb2 {[%clk 0:00:36.9]} 32... Nd4 {[%clk 0:00:20.4]} 33. Bd1 {[%clk 0:00:34.1]}
33... Bc5 {[%clk 0:00:19.1]} 34. Kf1 {[%clk 0:00:34.8]} 34... Bb6 {[%clk
0:00:14.6]} 35. Nd3 {[%clk 0:00:33.4]} 35... Re7 {[%clk 0:00:08.1]} 36. c5
{[%clk 0:00:30.3]} 36... Bd8 {[%clk 0:00:07.4]} 37. c6 {[%clk 0:00:29.7]} 37...
Nxc6 {[%clk 0:00:05.7]} 38. dxc6 {[%clk 0:00:27.8]} 38... Bxc6 {[%clk
0:00:06.6]} 39. Ra6 {[%clk 0:00:18.1]} 39... Bb5 {[%clk 0:00:04.3]} 40. Rxg6+
{[%clk 0:00:18.8]} 40... Kh7 {[%clk 0:00:04.2]} 41. Rd6 {[%clk 0:00:19.7]} 41...
Bc7 {[%clk 0:00:02.9]} 42. Rd5 {[%clk 0:00:20.2]} 42... Bc4 {[%clk 0:00:03.3]}
43. Bc2 {[%clk 0:00:14.4]} 43... Bxd5 {[%clk 0:00:03.3]} 44. exd5 {[%clk
0:00:15.3]} 44... Rd7 {[%clk 0:00:03.6]} 45. Nxe5+ {[%clk 0:00:15.1]} 1-0

[Event "Early-Titled-Tuesday-Blitz-October-10-2023"]
[Site "Chess.com"]
[Date "2023.10.10"]
[Round "11"]
[White "Alenzer"]
[Black "nitpicker"]
[Result "0-1"]
[WhiteElo "2115"]
[BlackElo "2271"]
[TimeControl "180+1"]
[EndTime "10:05:16 PDT"]
[Termination "nitpicker won on time"]

1. e4 {[%clk 0:02:58]} 1... c5 {[%clk 0:02:59.5]} 2. Nf3 {[%clk 0:02:57.7]} 2...
Nc6 {[%clk 0:02:57.8]} 3. d4 {[%clk 0:02:57.7]} 3... cxd4 {[%clk 0:02:57.4]} 4.
Nxd4 {[%clk 0:02:58.4]} 4... Nf6 {[%clk 0:02:57.7]} 5. Nc3 {[%clk 0:02:58.7]}
5... d6 {[%clk 0:02:58.3]} 6. Be2 {[%clk 0:02:54.7]} 6... e6 {[%clk 0:02:56.2]}
7. O-O {[%clk 0:02:50.9]} 7... a6 {[%clk 0:02:56]} 8. a4 {[%clk 0:02:50.5]} 8...
Bd7 {[%clk 0:02:53.2]} 9. Be3 {[%clk 0:02:47]} 9... Be7 {[%clk 0:02:52.4]} 10.
Nb3 {[%clk 0:02:46.8]} 10... b6 {[%clk 0:02:49.3]} 11. f4 {[%clk 0:02:43.4]}
11... Qc7 {[%clk 0:02:48.1]} 12. Kh1 {[%clk 0:02:42.2]} 12... Bc8 {[%clk
0:02:27.9]} 13. Bf3 {[%clk 0:02:33]} 13... Bb7 {[%clk 0:02:26.9]} 14. Qd2 {[%clk
0:02:28.4]} 14... O-O {[%clk 0:02:23.8]} 15. Rae1 {[%clk 0:02:20.5]} 15... Nd7
{[%clk 0:02:10.9]} 16. Bg1 {[%clk 0:02:04.5]} 16... Rfe8 {[%clk 0:02:06.3]} 17.
Ne2 {[%clk 0:01:38.9]} 17... Rac8 {[%clk 0:02:00]} 18. c3 {[%clk 0:01:38.4]}
18... Nc5 {[%clk 0:01:55.4]} 19. Nxc5 {[%clk 0:01:34.8]} 19... bxc5 {[%clk
0:01:55.7]} 20. Ng3 {[%clk 0:01:27.6]} 20... Bf8 {[%clk 0:01:36.6]} 21. f5
{[%clk 0:01:07.2]} 21... Ne5 {[%clk 0:01:33.8]} 22. b3 {[%clk 0:00:45.9]} 22...
Rb8 {[%clk 0:01:21.6]} 23. Qg5 {[%clk 0:00:41.8]} 23... Qe7 {[%clk 0:01:15.9]}
24. Qd2 {[%clk 0:00:37]} 24... Bc6 {[%clk 0:01:07]} 25. Nh5 {[%clk 0:00:35.7]}
25... g6 {[%clk 0:00:58.3]} 26. f6 {[%clk 0:00:24.8]} 26... Qd8 {[%clk
0:00:55.6]} 27. Qg5 {[%clk 0:00:23]} 27... h6 {[%clk 0:00:46.4]} 28. Qg3 {[%clk
0:00:23.1]} 28... Kh7 {[%clk 0:00:44.8]} 29. Nf4 {[%clk 0:00:18.5]} 29... Qxf6
{[%clk 0:00:43.8]} 30. Bd1 {[%clk 0:00:16.2]} 30... Qg5 {[%clk 0:00:42.6]} 31.
Qe3 {[%clk 0:00:14.4]} 31... Rxb3 {[%clk 0:00:42.3]} 32. Bxb3 {[%clk 0:00:12.8]}
32... c4 {[%clk 0:00:40.9]} 33. Bd1 {[%clk 0:00:12.8]} 33... Bg7 {[%clk
0:00:41.1]} 34. Nh3 {[%clk 0:00:12.6]} 34... Qh4 {[%clk 0:00:40.6]} 35. Nf2
{[%clk 0:00:11.9]} 35... h5 {[%clk 0:00:37.8]} 36. g3 {[%clk 0:00:12.4]} 36...
Qe7 {[%clk 0:00:36.7]} 37. Nh3 {[%clk 0:00:12.7]} 37... Bh6 {[%clk 0:00:37.2]}
38. Qe2 {[%clk 0:00:11.3]} 38... f5 {[%clk 0:00:36.2]} 39. Be3 {[%clk 0:00:11]}
39... Bxe4+ {[%clk 0:00:36.1]} 40. Kg1 {[%clk 0:00:08]} 40... Bd3 {[%clk
0:00:36.2]} 41. Qd2 {[%clk 0:00:06.9]} 41... Bxf1 {[%clk 0:00:35]} 42. Rxf1
{[%clk 0:00:07.5]} 42... Ng4 {[%clk 0:00:33.5]} 43. Bxh6 {[%clk 0:00:07.3]}
43... Nxh6 {[%clk 0:00:34.1]} 44. Ng5+ {[%clk 0:00:07.5]} 44... Kg7 {[%clk
0:00:32.7]} 45. Re1 {[%clk 0:00:07.8]} 45... e5 {[%clk 0:00:31.4]} 46. a5 {[%clk
0:00:07.1]} 46... f4 {[%clk 0:00:31.7]} 47. Ba4 {[%clk 0:00:06]} 47... Qxg5
{[%clk 0:00:29.7]} 48. Bxe8 {[%clk 0:00:05.4]} 48... Qg4 {[%clk 0:00:28.6]} 49.
Qf2 {[%clk 0:00:04.2]} 49... Nf5 {[%clk 0:00:27.6]} 50. Kg2 {[%clk 0:00:01.5]}
50... fxg3 {[%clk 0:00:27.5]} 51. hxg3 {[%clk 0:00:01.3]} 51... h4 {[%clk
0:00:26.7]} 0-1

[Event "Early-Titled-Tuesday-Blitz-October-10-2023"]
[Site "Chess.com"]
[Date "2023.10.10"]
[Round "11"]
[White "emeli_chess"]
[Black "Herman-NY"]
[Result "1/2-1/2"]
[WhiteElo "2406"]
[BlackElo "2537"]
[TimeControl "180+1"]
[EndTime "10:05:17 PDT"]
[Termination "Game drawn by repetition"]

1. d4 {[%clk 0:02:58.8]} 1... Nf6 {[%clk 0:03:00]} 2. c4 {[%clk 0:02:58.4]} 2...
g6 {[%clk 0:03:00.2]} 3. Nc3 {[%clk 0:02:58.6]} 3... Bg7 {[%clk 0:03:00.9]} 4.
e4 {[%clk 0:02:58.5]} 4... d6 {[%clk 0:03:01.8]} 5. f3 {[%clk 0:02:58.3]} 5...
O-O {[%clk 0:03:02.3]} 6. Be3 {[%clk 0:02:58.5]} 6... e5 {[%clk 0:03:02.9]} 7.
d5 {[%clk 0:02:58.6]} 7... Nh5 {[%clk 0:03:03.2]} 8. Qd2 {[%clk 0:02:58.3]} 8...
Qh4+ {[%clk 0:03:03.3]} 9. Bf2 {[%clk 0:02:54.9]} 9... Qe7 {[%clk 0:03:03.4]}
10. O-O-O {[%clk 0:02:52.1]} 10... f5 {[%clk 0:03:03.6]} 11. exf5 {[%clk
0:02:35]} 11... gxf5 {[%clk 0:03:02.5]} 12. Nge2 {[%clk 0:02:27.3]} 12... a6
{[%clk 0:02:50.9]} 13. h3 {[%clk 0:02:25.5]} 13... b5 {[%clk 0:02:31.7]} 14. g4
{[%clk 0:02:12.5]} 14... Nf4 {[%clk 0:02:09.5]} 15. Nxf4 {[%clk 0:02:10.5]}
15... exf4 {[%clk 0:02:09.3]} 16. Bd4 {[%clk 0:01:56.4]} 16... Nd7 {[%clk
0:01:50.1]} 17. Bxg7 {[%clk 0:01:51.4]} 17... Qxg7 {[%clk 0:01:51]} 18. Bd3
{[%clk 0:01:37.9]} 18... Ne5 {[%clk 0:01:42.3]} 19. Bxf5 {[%clk 0:01:36.7]}
19... bxc4 {[%clk 0:00:32.6]} 20. Kb1 {[%clk 0:01:12.7]} 20... Rb8 {[%clk
0:00:32.4]} 21. Ka1 {[%clk 0:01:08.1]} 21... Bxf5 {[%clk 0:00:20.1]} 22. gxf5
{[%clk 0:01:07.3]} 22... Rxf5 {[%clk 0:00:12.8]} 23. Rhg1 {[%clk 0:00:56.9]}
23... Rg5 {[%clk 0:00:12.7]} 24. Rxg5 {[%clk 0:00:52.4]} 24... Qxg5 {[%clk
0:00:12.7]} 25. Ne4 {[%clk 0:00:52.8]} 25... Qg7 {[%clk 0:00:09.3]} 26. Qd4
{[%clk 0:00:42.9]} 26... Kh8 {[%clk 0:00:03.1]} 27. Rg1 {[%clk 0:00:40.3]} 27...
Qh6 {[%clk 0:00:03.4]} 28. Ng5 {[%clk 0:00:29.3]} 28... Rf8 {[%clk 0:00:03.1]}
29. Ne6 {[%clk 0:00:20.1]} 29... Rf7 {[%clk 0:00:03.3]} 30. Qa7 {[%clk
0:00:18.2]} 30... Ng6 {[%clk 0:00:02.3]} 31. Qb8+ {[%clk 0:00:17.1]} 31... Nf8
{[%clk 0:00:02.9]} 32. Nxf8 {[%clk 0:00:14.9]} 32... Qxf8 {[%clk 0:00:03.8]} 33.
Qb4 {[%clk 0:00:14]} 33... Rf5 {[%clk 0:00:03.3]} 34. Qxc4 {[%clk 0:00:13.2]}
34... Qf7 {[%clk 0:00:03.2]} 35. Qc6 {[%clk 0:00:12.7]} 35... h6 {[%clk
0:00:03.1]} 36. a3 {[%clk 0:00:11.3]} 36... Rxd5 {[%clk 0:00:02.4]} 37. Qa8+
{[%clk 0:00:11.3]} 37... Kh7 {[%clk 0:00:02.5]} 38. Qd8 {[%clk 0:00:10.1]} 38...
Rf5 {[%clk 0:00:02.3]} 39. Qc8 {[%clk 0:00:09.3]} 39... Re5 {[%clk 0:00:01.6]}
40. Rg4 {[%clk 0:00:08.7]} 40... Rf5 {[%clk 0:00:01.9]} 41. Qb7 {[%clk
0:00:07.3]} 41... Rf6 {[%clk 0:00:02.3]} 42. Rg1 {[%clk 0:00:07.3]} 42... Kh8
{[%clk 0:00:02.8]} 43. Re1 {[%clk 0:00:07.3]} 43... Kh7 {[%clk 0:00:03.7]} 44.
Qc8 {[%clk 0:00:06.4]} 44... Rf5 {[%clk 0:00:03.6]} 45. Re8 {[%clk 0:00:06.1]}
45... Re5 {[%clk 0:00:03.2]} 46. Rh8+ {[%clk 0:00:05.9]} 46... Kg6 {[%clk
0:00:03.3]} 47. Rg8+ {[%clk 0:00:05.5]} 47... Kh7 {[%clk 0:00:03.6]} 48. Rh8+
{[%clk 0:00:05.8]} 48... Kg6 {[%clk 0:00:04.2]} 49. Rg8+ {[%clk 0:00:06.2]}
49... Kh7 {[%clk 0:00:04.8]} 50. Rh8+ {[%clk 0:00:06.5]} 1/2-1/2